[Event "Live Chess"]
[Site "Chess.com"]
[Date "2024.06.01"]
[Round "-"]
[White "matt1979"]
[Black "yarek"]
[Result "1-0"]
[WhiteElo "1377"]
[BlackElo "1718"]
[TimeControl "300"]
[EndTime "10:59:11 PDT"]
[Termination "matt1979 won by checkmate"]

1. f4 {[%clk 0:04:58.8]} 1... e5 {[%clk 0:04:56.1]} 2. fxe5 {[%clk 0:04:56.8]}
2... d6 {[%clk 0:04:55.7]} 3. Nf3 {[%clk 0:04:54.3]} 3... Nc6 {[%clk 0:04:47.5]}
4. e4 {[%clk 0:04:49.1]} 4... dxe5 {[%clk 0:04:43.2]} 5. Bb5 {[%clk 0:04:45.9]}
5... Bd6 {[%clk 0:04:36.6]} 6. Bxc6+ {[%clk 0:04:42.7]} 6... bxc6 {[%clk
0:04:35]} 7. O-O {[%clk 0:04:41.3]} 7... Nf6 {[%clk 0:04:33.3]} 8. d3 {[%clk
0:04:38.6]} 8... h6 {[%clk 0:04:29.2]} 9. h3 {[%clk 0:04:33.4]} 9... O-O {[%clk
0:04:28.5]} 10. Be3 {[%clk 0:04:26.6]} 10... Be6 {[%clk 0:04:18.6]} 11. Qd2
{[%clk 0:04:24.6]} 11... Kh7 {[%clk 0:04:15.8]} 12. Nc3 {[%clk 0:04:17.7]} 12...
Nh5 {[%clk 0:04:11.3]} 13. Qf2 {[%clk 0:04:03.6]} 13... Nf4 {[%clk 0:04:00]} 14.
Bxf4 {[%clk 0:04:02.4]} 14... exf4 {[%clk 0:03:58.3]} 15. Nd4 {[%clk 0:03:53.7]}
15... Bd7 {[%clk 0:03:49.8]} 16. Nde2 {[%clk 0:03:33.2]} 16... Qf6 {[%clk
0:03:28.1]} 17. Nxf4 {[%clk 0:03:19]} 17... Be5 {[%clk 0:03:25.8]} 18. Nfe2
{[%clk 0:03:09.5]} 18... Qg6 {[%clk 0:03:15.5]} 19. Qh4 {[%clk 0:02:41.1]} 19...
Bf6 {[%clk 0:03:05.6]} 20. Qg3 {[%clk 0:02:36]} 20... Bd4+ {[%clk 0:02:42.3]}
21. Kh2 {[%clk 0:02:28.1]} 21... Qxg3+ {[%clk 0:02:24.2]} 22. Kxg3 {[%clk
0:02:22.6]} 22... Be5+ {[%clk 0:02:23.7]} 23. Kf3 {[%clk 0:02:11.7]} 23... f5
{[%clk 0:02:19.8]} 24. Ke3 {[%clk 0:01:56.5]} 24... Rab8 {[%clk 0:01:57.5]} 25.
d4 {[%clk 0:01:41]} 25... Bd6 {[%clk 0:01:45.2]} 26. e5 {[%clk 0:01:36.9]} 26...
Bb4 {[%clk 0:01:43]} 27. a3 {[%clk 0:01:27.6]} 27... Bxc3 {[%clk 0:01:40.5]} 28.
bxc3 {[%clk 0:01:26.1]} 28... Rb2 {[%clk 0:01:35.1]} 29. Kd3 {[%clk 0:01:15.3]}
29... g5 {[%clk 0:01:32.6]} 30. Rab1 {[%clk 0:01:09.9]} 30... Rfb8 {[%clk
0:01:29.4]} 31. Rxb2 {[%clk 0:01:05.3]} 31... Rxb2 {[%clk 0:01:29.3]} 32. Ng3
{[%clk 0:00:58.8]} 32... f4 {[%clk 0:01:27.1]} 33. Ne4 {[%clk 0:00:50.5]} 33...
Bf5 {[%clk 0:01:23.8]} 34. Re1 {[%clk 0:00:45.8]} 34... Ra2 {[%clk 0:01:17.4]}
35. Kd2 {[%clk 0:00:34]} 35... Bxe4 {[%clk 0:01:14.9]} 36. Rxe4 {[%clk
0:00:32.8]} 36... Rxa3 {[%clk 0:01:14.5]} 37. e6 {[%clk 0:00:30.8]} 37... h5
{[%clk 0:00:22]} 38. e7 {[%clk 0:00:30.7]} 38... g4 {[%clk 0:00:21.5]} 39. e8=Q
{[%clk 0:00:26.9]} 39... gxh3 {[%clk 0:00:21.4]} 40. Qe7+ {[%clk 0:00:23.7]}
40... Kh6 {[%clk 0:00:20.2]} 41. Qf6+ {[%clk 0:00:21.7]} 41... Kh7 {[%clk
0:00:18.6]} 42. Re7+ {[%clk 0:00:20.4]} 42... Kg8 {[%clk 0:00:18.1]} 43. Qg7#
{[%clk 0:00:19.2]} 1-0

[Event "Live Chess"]
[Site "Chess.com"]
[Date "2024.06.01"]
[Round "-"]
[White "educatedlad"]
[Black "KwikPhoenix"]
[Result "0-1"]
[WhiteElo "1758"]
[BlackElo "2454"]
[TimeControl "300"]
[EndTime "10:59:14 PDT"]
[Termination "KwikPhoenix won by resignation"]

1. d4 {[%clk 0:04:59.4]} 1... f5 {[%clk 0:04:58.9]} 2. Bg5 {[%clk 0:04:56.3]}
2... h6 {[%clk 0:04:57.3]} 3. Bh4 {[%clk 0:04:53.6]} 3... g5 {[%clk 0:04:56.5]}
4. e3 {[%clk 0:04:53]} 4... Nf6 {[%clk 0:04:55.4]} 5. Bg3 {[%clk 0:04:51.6]}
5... Bg7 {[%clk 0:04:54]} 6. Nc3 {[%clk 0:04:51.1]} 6... d6 {[%clk 0:04:52.8]}
7. h4 {[%clk 0:04:49.4]} 7... g4 {[%clk 0:04:51.7]} 8. Nge2 {[%clk 0:04:47.9]}
8... c6 {[%clk 0:04:49.4]} 9. Nf4 {[%clk 0:04:47]} 9... d5 {[%clk 0:04:44]} 10.
Bd3 {[%clk 0:04:45.6]} 10... e6 {[%clk 0:04:42.7]} 11. f3 {[%clk 0:04:39.4]}
11... h5 {[%clk 0:04:41.8]} 12. fxg4 {[%clk 0:04:37.8]} 12... hxg4 {[%clk
0:04:41.7]} 13. Ng6 {[%clk 0:04:33.7]} 13... Rh6 {[%clk 0:04:39.1]} 14. Ne5
{[%clk 0:04:31.1]} 14... Nh5 {[%clk 0:04:37.6]} 15. Ne2 {[%clk 0:04:20.4]} 15...
Nxg3 {[%clk 0:04:34.2]} 16. Nxg3 {[%clk 0:04:18.6]} 16... Bxe5 {[%clk
0:04:33.5]} 17. dxe5 {[%clk 0:04:16.7]} 17... Rxh4 {[%clk 0:04:33.2]} 18. Qe2
{[%clk 0:04:09.7]} 18... Rxh1+ {[%clk 0:04:31.8]} 19. Nxh1 {[%clk 0:04:08.7]}
19... Qh4+ {[%clk 0:04:31.1]} 20. Nf2 {[%clk 0:04:07]} 20... Nd7 {[%clk
0:04:30.6]} 21. O-O-O {[%clk 0:04:05.6]} 21... Nxe5 {[%clk 0:04:27.9]} 22. Rh1
{[%clk 0:04:05.1]} 22... Qf6 {[%clk 0:04:27.2]} 23. Qf1 {[%clk 0:03:56.2]} 23...
Bd7 {[%clk 0:04:25.3]} 24. Rh7 {[%clk 0:03:47.2]} 24... O-O-O {[%clk 0:04:23.8]}
25. Nxg4 {[%clk 0:03:44.2]} 25... Nxg4 {[%clk 0:04:19.9]} 0-1

[Event "Live Chess"]
[Site "Chess.com"]
[Date "2024.06.01"]
[Round "-"]
[White "elephantgerrald"]
[Black "gmnorfolk"]
[Result "0-1"]
[WhiteElo "740"]
[BlackElo "2126"]
[TimeControl "300"]
[EndTime "10:59:40 PDT"]
[Termination "gmnorfolk won by checkmate"]

1. e4 {[%clk 0:04:57.8]} 1... c5 {[%clk 0:04:58.7]} 2. Nf3 {[%clk 0:04:56.4]}
2... d6 {[%clk 0:04:57.9]} 3. Nc3 {[%clk 0:04:55.2]} 3... Nf6 {[%clk 0:04:56]}
4. Bc4 {[%clk 0:04:54.5]} 4... Nc6 {[%clk 0:04:54]} 5. O-O {[%clk 0:04:53.9]}
5... g6 {[%clk 0:04:53.5]} 6. d3 {[%clk 0:04:53.3]} 6... Bg7 {[%clk 0:04:53]} 7.
Bg5 {[%clk 0:04:52.7]} 7... O-O {[%clk 0:04:52.1]} 8. Bxf6 {[%clk 0:04:51.9]}
8... Bxf6 {[%clk 0:04:50.9]} 9. h3 {[%clk 0:04:51.3]} 9... a6 {[%clk 0:04:48.3]}
10. a3 {[%clk 0:04:50.3]} 10... b5 {[%clk 0:04:46.8]} 11. Bd5 {[%clk 0:04:48.8]}
11... Bd7 {[%clk 0:04:44.9]} 12. Qd2 {[%clk 0:04:43.7]} 12... Rb8 {[%clk
0:04:43.4]} 13. Rab1 {[%clk 0:04:39.4]} 13... Nd4 {[%clk 0:04:42.2]} 14. Nxd4
{[%clk 0:04:37.4]} 14... Bxd4 {[%clk 0:04:37.3]} 15. Ne2 {[%clk 0:04:30]} 15...
Bg7 {[%clk 0:04:35.7]} 16. c3 {[%clk 0:04:23]} 16... e6 {[%clk 0:04:32.6]} 17.
Bb3 {[%clk 0:04:20.5]} 17... a5 {[%clk 0:04:32.5]} 18. c4 {[%clk 0:04:15.7]}
18... a4 {[%clk 0:04:29.3]} 19. Bc2 {[%clk 0:04:11.8]} 19... bxc4 {[%clk
0:04:26.8]} 20. dxc4 {[%clk 0:04:08.8]} 20... Rxb2 {[%clk 0:04:25.7]} 21. Rxb2
{[%clk 0:04:07.5]} 21... Bxb2 {[%clk 0:04:25.6]} 22. Qh6 {[%clk 0:03:59.2]}
22... Bg7 {[%clk 0:04:23.9]} 23. Qf4 {[%clk 0:03:53.3]} 23... Bc6 {[%clk
0:04:17.6]} 24. Nc3 {[%clk 0:03:37.4]} 24... Bxc3 {[%clk 0:04:12.6]} 25. Rd1
{[%clk 0:03:26.2]} 25... Bd4 {[%clk 0:04:11.3]} 26. Qg3 {[%clk 0:03:18.6]} 26...
e5 {[%clk 0:04:08.7]} 27. Kh2 {[%clk 0:03:14.4]} 27... Kg7 {[%clk 0:04:02]} 28.
f3 {[%clk 0:02:59]} 28... h5 {[%clk 0:03:56.4]} 29. f4 {[%clk 0:02:56.4]} 29...
exf4 {[%clk 0:03:54.3]} 30. Qxf4 {[%clk 0:02:55.2]} 30... Be5 {[%clk 0:03:52.8]}
31. Qxe5+ {[%clk 0:02:52.4]} 31... dxe5 {[%clk 0:03:51]} 32. Rxd8 {[%clk
0:02:51]} 32... Rxd8 {[%clk 0:03:50]} 33. Kg3 {[%clk 0:02:49.2]} 33... Rd4
{[%clk 0:03:48.7]} 34. Kf2 {[%clk 0:02:47.2]} 34... Bxe4 {[%clk 0:03:46.9]} 35.
Bxe4 {[%clk 0:02:45.5]} 35... Rxe4 {[%clk 0:03:45.5]} 36. Kf3 {[%clk 0:02:44.9]}
36... Rxc4 {[%clk 0:03:44.4]} 37. Ke2 {[%clk 0:02:44.8]} 37... Rd4 {[%clk
0:03:42.5]} 38. Ke3 {[%clk 0:02:43.8]} 38... c4 {[%clk 0:03:41.9]} 39. Ke2
{[%clk 0:02:42.2]} 39... c3 {[%clk 0:03:41.8]} 40. Ke3 {[%clk 0:02:41.6]} 40...
c2 {[%clk 0:03:41.7]} 41. Kf3 {[%clk 0:02:38.4]} 41... c1=Q {[%clk 0:03:41.6]}
42. Kg3 {[%clk 0:02:37.7]} 42... Qf4# {[%clk 0:03:40.4]} 0-1

[Event "Live Chess"]
[Site "Chess.com"]
[Date "2024.06.01"]
[Round "-"]
[White "booktrunk"]
[Black "Yarigo"]
[Result "0-1"]
[WhiteElo "1389"]
[BlackElo "2350"]
[TimeControl "300"]
[EndTime "10:59:45 PDT"]
[Termination "Yarigo won by resignation"]

1. d4 {[%clk 0:04:56.8]} 1... d5 {[%clk 0:04:57.4]} 2. Nc3 {[%clk 0:04:51.3]}
2... e6 {[%clk 0:04:52.2]} 3. Bf4 {[%clk 0:04:51.2]} 3... Nf6 {[%clk 0:04:48.3]}
4. Nb5 {[%clk 0:04:48.7]} 4... Na6 {[%clk 0:04:41.6]} 5. e3 {[%clk 0:04:46.9]}
5... c6 {[%clk 0:04:39.5]} 6. Nc3 {[%clk 0:04:45.8]} 6... Nc7 {[%clk 0:04:37.2]}
7. Bxc7 {[%clk 0:04:44.4]} 7... Qxc7 {[%clk 0:04:34.7]} 8. Nf3 {[%clk
0:04:44.1]} 8... Bd6 {[%clk 0:04:31.7]} 9. Be2 {[%clk 0:04:39.9]} 9... O-O
{[%clk 0:04:30.1]} 10. Rb1 {[%clk 0:04:38.9]} 10... e5 {[%clk 0:04:28.5]} 11.
dxe5 {[%clk 0:04:35.7]} 11... Bxe5 {[%clk 0:04:27.1]} 12. Nxe5 {[%clk
0:04:35.1]} 12... Qxe5 {[%clk 0:04:25.8]} 13. O-O {[%clk 0:04:32.5]} 13... a5
{[%clk 0:04:18]} 14. Qd4 {[%clk 0:04:31.1]} 14... Re8 {[%clk 0:04:13.6]} 15.
Qxe5 {[%clk 0:04:29.1]} 15... Rxe5 {[%clk 0:04:11.7]} 16. Bf3 {[%clk 0:04:26.4]}
16... Bf5 {[%clk 0:04:09.3]} 17. Rbc1 {[%clk 0:04:24.1]} 17... g5 {[%clk
0:03:59.5]} 18. h3 {[%clk 0:04:20.7]} 18... h5 {[%clk 0:03:54.1]} 19. Na4 {[%clk
0:03:53.6]} 19... g4 {[%clk 0:03:44.5]} 20. hxg4 {[%clk 0:03:51.7]} 20... hxg4
{[%clk 0:03:43.2]} 21. Be2 {[%clk 0:03:50.5]} 21... Kg7 {[%clk 0:03:39.5]} 22.
f3 {[%clk 0:03:48.9]} 22... g3 {[%clk 0:03:32.2]} 23. f4 {[%clk 0:03:46.9]}
23... Rxe3 {[%clk 0:03:29.9]} 24. Bf3 {[%clk 0:03:43.4]} 24... Rae8 {[%clk
0:03:20.8]} 25. Rfd1 {[%clk 0:03:39.9]} 25... Bxc2 {[%clk 0:03:14.9]} 26. Rxc2
{[%clk 0:03:33.2]} 26... Re1+ {[%clk 0:03:12.6]} 0-1

[Event "Live Chess"]
[Site "Chess.com"]
[Date "2024.06.01"]
[Round "-"]
[White "peteopeteo"]
[Black "SirGerhard"]
[Result "0-1"]
[WhiteElo "1617"]
[BlackElo "2771"]
[TimeControl "300"]
[EndTime "10:59:46 PDT"]
[Termination "SirGerhard won by checkmate"]

1. e4 {[%clk 0:04:59.5]} 1... c5 {[%clk 0:04:58.8]} 2. a3 {[%clk 0:04:58.5]}
2... g6 {[%clk 0:04:57.1]} 3. b4 {[%clk 0:04:58.4]} 3... Bg7 {[%clk 0:04:56.5]}
4. Nc3 {[%clk 0:04:50.8]} 4... b6 {[%clk 0:04:55.9]} 5. Bb2 {[%clk 0:04:45.3]}
5... Nc6 {[%clk 0:04:54.6]} 6. Qc1 {[%clk 0:04:41.7]} 6... Nf6 {[%clk
0:04:52.1]} 7. d3 {[%clk 0:04:36.6]} 7... O-O {[%clk 0:04:50.9]} 8. Nf3 {[%clk
0:04:35.2]} 8... cxb4 {[%clk 0:04:46.9]} 9. axb4 {[%clk 0:04:34.1]} 9... Nxb4
{[%clk 0:04:46.2]} 10. Be2 {[%clk 0:04:28.4]} 10... Bb7 {[%clk 0:04:45]} 11. O-O
{[%clk 0:04:26.1]} 11... a5 {[%clk 0:04:44.3]} 12. e5 {[%clk 0:04:22.6]} 12...
Nfd5 {[%clk 0:04:42.6]} 13. Ne4 {[%clk 0:04:16.4]} 13... Rc8 {[%clk 0:04:40.9]}
14. c4 {[%clk 0:04:12.4]} 14... b5 {[%clk 0:04:31.3]} 15. Qd2 {[%clk 0:03:53.5]}
15... bxc4 {[%clk 0:04:29.8]} 16. dxc4 {[%clk 0:03:53.4]} 16... Nb6 {[%clk
0:04:29.1]} 17. Bd3 {[%clk 0:03:41.4]} 17... Nxc4 {[%clk 0:04:13.9]} 18. Bxc4
{[%clk 0:03:36.4]} 18... Rxc4 {[%clk 0:04:12.2]} 19. Rac1 {[%clk 0:03:28.8]}
19... Rxc1 {[%clk 0:04:09.7]} 20. Rxc1 {[%clk 0:03:28.7]} 20... Bxe4 {[%clk
0:04:09]} 21. Ng5 {[%clk 0:03:23.3]} 21... Bc6 {[%clk 0:04:07.6]} 22. h4 {[%clk
0:03:22.4]} 22... h6 {[%clk 0:04:06.2]} 23. Nf3 {[%clk 0:03:17.5]} 23... Qa8
{[%clk 0:04:04.8]} 24. h5 {[%clk 0:03:07]} 24... g5 {[%clk 0:04:02.3]} 25. Nxg5
{[%clk 0:03:01]} 25... Bxg2 {[%clk 0:03:53.3]} 26. e6 {[%clk 0:02:54.9]} 26...
f6 {[%clk 0:03:43.7]} 27. exd7 {[%clk 0:02:46.3]} 27... hxg5 {[%clk 0:03:39.8]}
28. Rc8 {[%clk 0:02:39.2]} 28... Rxc8 {[%clk 0:03:37.5]} 29. dxc8=N {[%clk
0:02:28.1]} 29... Qxc8 {[%clk 0:03:37]} 30. Kxg2 {[%clk 0:02:24.5]} 30... Qg4+
{[%clk 0:03:36.2]} 31. Kf1 {[%clk 0:02:20.3]} 31... Qxh5 {[%clk 0:03:35.5]} 32.
Qd8+ {[%clk 0:02:13.6]} 32... Kf7 {[%clk 0:03:33.2]} 33. Qa8 {[%clk 0:02:07.5]}
33... Qd1+ {[%clk 0:03:31.4]} 34. Kg2 {[%clk 0:02:05.6]} 34... Nd5 {[%clk
0:03:30.7]} 35. Qxa5 {[%clk 0:01:58.9]} 35... Nf4+ {[%clk 0:03:29.7]} 36. Kg3
{[%clk 0:01:51.3]} 36... Qd3+ {[%clk 0:03:20.2]} 37. Kh2 {[%clk 0:01:47.9]}
37... Qh3+ {[%clk 0:03:18.7]} 38. Kg1 {[%clk 0:01:47.1]} 38... Qg2# {[%clk
0:03:17.8]} 0-1

[Event "Live Chess"]
[Site "Chess.com"]
[Date "2024.06.01"]
[Round "-"]
[White "viktorskliarov"]
[Black "CarmelJane"]
[Result "1-0"]
[WhiteElo "2644"]
[BlackElo "2086"]
[TimeControl "300"]
[EndTime "10:59:47 PDT"]
[Termination "viktorskliarov won by resignation"]

1. e4 {[%clk 0:04:58.7]} 1... c5 {[%clk 0:04:58.2]} 2. Nf3 {[%clk 0:04:57.1]}
2... e6 {[%clk 0:04:56.1]} 3. d4 {[%clk 0:04:56.2]} 3... cxd4 {[%clk 0:04:55.2]}
4. Nxd4 {[%clk 0:04:56.1]} 4... Nf6 {[%clk 0:04:54]} 5. Nc3 {[%clk 0:04:53.9]}
5... Nc6 {[%clk 0:04:51.8]} 6. Nxc6 {[%clk 0:04:52.1]} 6... bxc6 {[%clk
0:04:49.5]} 7. e5 {[%clk 0:04:51.5]} 7... Nd5 {[%clk 0:04:48.5]} 8. Ne4 {[%clk
0:04:48.5]} 8... Qc7 {[%clk 0:04:45.4]} 9. f4 {[%clk 0:04:47.5]} 9... Qb6 {[%clk
0:04:43.4]} 10. c4 {[%clk 0:04:46.6]} 10... Bb4+ {[%clk 0:04:41]} 11. Ke2 {[%clk
0:04:44.9]} 11... f5 {[%clk 0:04:39.6]} 12. exf6 {[%clk 0:04:32.2]} 12... Nxf6
{[%clk 0:04:37.3]} 13. Nd6+ {[%clk 0:04:22.8]} 13... Bxd6 {[%clk 0:04:32.7]} 14.
Qxd6 {[%clk 0:04:20.9]} 14... Ne4 {[%clk 0:04:28]} 15. Qe5 {[%clk 0:03:08.3]}
15... Nf6 {[%clk 0:02:50]} 16. Be3 {[%clk 0:03:04.4]} 16... Qd8 {[%clk
0:02:38.3]} 17. Bc5 {[%clk 0:02:49.7]} 17... Kf7 {[%clk 0:02:19.6]} 18. h3
{[%clk 0:02:45.3]} 18... Ne8 {[%clk 0:02:01.5]} 19. Rd1 {[%clk 0:02:37.7]} 19...
Qf6 {[%clk 0:01:44.8]} 20. g3 {[%clk 0:02:35.4]} 20... Ba6 {[%clk 0:01:32]} 21.
Ke3 {[%clk 0:02:26.3]} 21... Rd8 {[%clk 0:01:16.3]} 22. Bxa7 {[%clk 0:02:23.1]}
22... d6 {[%clk 0:01:07.9]} 23. Qxf6+ {[%clk 0:02:14.7]} 23... gxf6 {[%clk
0:01:04.7]} 24. Bd4 {[%clk 0:02:11.4]} 24... Rg8 {[%clk 0:01:00.6]} 25. Kf2
{[%clk 0:02:08]} 25... e5 {[%clk 0:00:59.7]} 26. Be3 {[%clk 0:02:06.2]} 26...
Nc7 {[%clk 0:00:57.8]} 27. Bb6 {[%clk 0:02:02.8]} 27... Ne6 {[%clk 0:00:51.2]}
28. Bxd8 {[%clk 0:02:01.2]} 28... Rxd8 {[%clk 0:00:50.9]} 29. b3 {[%clk
0:01:45.3]} 29... Nd4 {[%clk 0:00:49.4]} 30. Bg2 {[%clk 0:01:42.8]} 30... d5
{[%clk 0:00:44.4]} 31. cxd5 {[%clk 0:01:33.4]} 31... cxd5 {[%clk 0:00:44.3]} 32.
Rc1 {[%clk 0:01:18.6]} 32... Ke6 {[%clk 0:00:40.6]} 33. Rhd1 {[%clk 0:01:16.2]}
33... Be2 {[%clk 0:00:31.6]} 34. Rxd4 {[%clk 0:01:14.1]} 34... exd4 {[%clk
0:00:30.5]} 35. Kxe2 {[%clk 0:01:13.5]} 1-0

[Event "Live Chess"]
[Site "Chess.com"]
[Date "2024.06.01"]
[Round "-"]
[White "Isambard_Thomas"]
[Black "FlyingChessKestrel13"]
[Result "1-0"]
[WhiteElo "2165"]
[BlackElo "2096"]
[TimeControl "300"]
[EndTime "10:59:47 PDT"]
[Termination "Isambard_Thomas won by resignation"]

1. d4 {[%clk 0:04:58.1]} 1... e6 {[%clk 0:04:59.9]} 2. Nf3 {[%clk 0:04:56.9]}
2... f5 {[%clk 0:04:58.8]} 3. Bg5 {[%clk 0:04:56.4]} 3... Be7 {[%clk 0:04:57.8]}
4. h4 {[%clk 0:04:55]} 4... Nf6 {[%clk 0:04:55.8]} 5. e3 {[%clk 0:04:53.9]} 5...
b6 {[%clk 0:04:54.4]} 6. Bd3 {[%clk 0:04:52.9]} 6... Bb7 {[%clk 0:04:53.4]} 7.
Nbd2 {[%clk 0:04:52.4]} 7... Nc6 {[%clk 0:04:52.2]} 8. a3 {[%clk 0:04:50.9]}
8... d6 {[%clk 0:04:51.4]} 9. Qe2 {[%clk 0:04:50.1]} 9... h6 {[%clk 0:04:48.3]}
10. Bf4 {[%clk 0:04:45]} 10... Qd7 {[%clk 0:04:47.5]} 11. O-O-O {[%clk
0:04:43.5]} 11... O-O-O {[%clk 0:04:46]} 12. Nb3 {[%clk 0:04:41.5]} 12... Kb8
{[%clk 0:04:45.3]} 13. Bb5 {[%clk 0:04:39.7]} 13... a6 {[%clk 0:04:42.4]} 14.
Bxa6 {[%clk 0:04:38.5]} 14... Nd5 {[%clk 0:04:34.4]} 15. Bh2 {[%clk 0:04:23.8]}
15... g5 {[%clk 0:04:30.6]} 16. hxg5 {[%clk 0:04:19.8]} 16... hxg5 {[%clk
0:04:29.8]} 17. Bb5 {[%clk 0:04:12.7]} 17... g4 {[%clk 0:04:28.3]} 18. Nfd2
{[%clk 0:04:02.1]} 18... Rh7 {[%clk 0:04:18.9]} 19. Bg3 {[%clk 0:03:52.3]} 19...
Rdh8 {[%clk 0:04:15.3]} 20. Rxh7 {[%clk 0:03:51.3]} 20... Rxh7 {[%clk
0:04:15.2]} 21. c4 {[%clk 0:03:41.6]} 21... Nf6 {[%clk 0:04:13.6]} 22. d5 {[%clk
0:03:36.6]} 22... exd5 {[%clk 0:04:12.4]} 23. cxd5 {[%clk 0:03:34.3]} 23... Nxd5
{[%clk 0:04:11.6]} 24. Qd3 {[%clk 0:03:31]} 24... Qe6 {[%clk 0:03:54.5]} 25. Qc2
{[%clk 0:02:51.9]} 25... Na7 {[%clk 0:03:41.1]} 26. Bd3 {[%clk 0:02:50.6]} 26...
Rf7 {[%clk 0:03:35.7]} 27. Nd4 {[%clk 0:02:45.1]} 27... Qf6 {[%clk 0:03:34]} 28.
Nxf5 {[%clk 0:02:35.3]} 28... Nc8 {[%clk 0:03:17.4]} 29. e4 {[%clk 0:02:30.7]}
29... c6 {[%clk 0:02:55.8]} 30. exd5 {[%clk 0:02:28.7]} 30... cxd5 {[%clk
0:02:55.7]} 31. Kb1 {[%clk 0:02:12.7]} 31... Bf8 {[%clk 0:02:54.2]} 32. Nb3
{[%clk 0:01:59.7]} 32... Rc7 {[%clk 0:02:52.4]} 33. Qe2 {[%clk 0:01:51.8]} 33...
d4 {[%clk 0:02:45.7]} 34. Nbxd4 {[%clk 0:01:36.5]} 34... Bxg2 {[%clk 0:02:44.1]}
35. Qxg4 {[%clk 0:01:33.1]} 35... Bg7 {[%clk 0:02:37.7]} 36. Nxg7 {[%clk
0:01:22.8]} 36... Rxg7 {[%clk 0:02:35.2]} 37. Qh4 {[%clk 0:01:19.6]} 37... Qxh4
{[%clk 0:02:19.1]} 38. Bxh4 {[%clk 0:01:19.5]} 38... Rg4 {[%clk 0:02:15.5]} 39.
Nf5 {[%clk 0:01:14.8]} 39... Bf3 {[%clk 0:02:06.7]} 40. Rc1 {[%clk 0:01:11.7]}
40... Rf4 {[%clk 0:02:00.8]} 41. Bg3 {[%clk 0:01:09.7]} 41... Rg4 {[%clk
0:01:59.5]} 42. Nxd6 {[%clk 0:01:05.5]} 42... Nxd6 {[%clk 0:01:57.3]} 43. Bxd6+
{[%clk 0:01:05.4]} 43... Kb7 {[%clk 0:01:56.2]} 44. Rc7+ {[%clk 0:01:03.8]}
44... Ka8 {[%clk 0:01:54]} 45. Bg3 {[%clk 0:00:57.7]} 1-0

[Event "Live Chess"]
[Site "Chess.com"]
[Date "2024.06.01"]
[Round "-"]
[White "Crowded_House"]
[Black "ACM42"]
[Result "0-1"]
[WhiteElo "1766"]
[BlackElo "2211"]
[TimeControl "300"]
[EndTime "10:59:56 PDT"]
[Termination "ACM42 won by resignation"]

1. d4 {[%clk 0:04:56.7]} 1... Nf6 {[%clk 0:04:58.4]} 2. Bg5 {[%clk 0:04:55.5]}
2... g6 {[%clk 0:04:55.6]} 3. e3 {[%clk 0:04:51.1]} 3... Bg7 {[%clk 0:04:54.7]}
4. c3 {[%clk 0:04:49.8]} 4... b5 {[%clk 0:04:53]} 5. a3 {[%clk 0:04:47.3]} 5...
a6 {[%clk 0:04:51.9]} 6. Bd3 {[%clk 0:04:45.2]} 6... Bb7 {[%clk 0:04:50.2]} 7.
Nf3 {[%clk 0:04:41.7]} 7... d6 {[%clk 0:04:49.1]} 8. Nbd2 {[%clk 0:04:39.9]}
8... Nbd7 {[%clk 0:04:47.5]} 9. O-O {[%clk 0:04:38.7]} 9... O-O {[%clk
0:04:46.3]} 10. Qc2 {[%clk 0:04:37.7]} 10... c5 {[%clk 0:04:44.4]} 11. dxc5
{[%clk 0:04:22.1]} 11... Nxc5 {[%clk 0:04:41.9]} 12. Be2 {[%clk 0:04:20.8]}
12... Rc8 {[%clk 0:04:34]} 13. Qd1 {[%clk 0:04:14.7]} 13... h6 {[%clk
0:04:30.8]} 14. Bh4 {[%clk 0:04:12.1]} 14... Qb6 {[%clk 0:04:28.7]} 15. Nb3
{[%clk 0:04:04]} 15... Nce4 {[%clk 0:04:24.7]} 16. Nbd2 {[%clk 0:03:50.2]} 16...
g5 {[%clk 0:04:16.5]} 17. Bg3 {[%clk 0:03:48.4]} 17... Rfd8 {[%clk 0:04:07]} 18.
Nxe4 {[%clk 0:03:45.1]} 18... Nxe4 {[%clk 0:04:05.4]} 19. Nd2 {[%clk 0:03:40.2]}
19... Nxg3 {[%clk 0:04:03.5]} 20. hxg3 {[%clk 0:03:34.2]} 20... e5 {[%clk
0:03:55.7]} 21. Bf3 {[%clk 0:03:30.8]} 21... d5 {[%clk 0:03:54.3]} 22. Nb3
{[%clk 0:03:22.3]} 22... a5 {[%clk 0:03:47.4]} 23. Rb1 {[%clk 0:03:19.7]} 23...
a4 {[%clk 0:03:46.4]} 24. Nd2 {[%clk 0:03:13.5]} 24... Ba6 {[%clk 0:03:41.1]}
25. Be2 {[%clk 0:03:10.9]} 25... d4 {[%clk 0:03:38.9]} 26. exd4 {[%clk 0:03:06]}
26... exd4 {[%clk 0:03:37.7]} 27. cxd4 {[%clk 0:02:46.4]} 27... Bxd4 {[%clk
0:03:36.1]} 28. Qe1 {[%clk 0:02:39.7]} 28... Rc2 {[%clk 0:03:34]} 29. Nf3 {[%clk
0:02:35.1]} 29... Bxb2 {[%clk 0:03:23.2]} 30. Nh2 {[%clk 0:01:56.3]} 30... Re8
{[%clk 0:03:20.3]} 31. Qb4 {[%clk 0:01:32.3]} 31... Bc3 {[%clk 0:03:08.4]} 32.
Qg4 {[%clk 0:01:08]} 32... Rcxe2 {[%clk 0:03:07]} 33. Qf5 {[%clk 0:00:58.5]}
33... Qe6 {[%clk 0:02:44.7]} 34. Qxe6 {[%clk 0:00:55.5]} 34... R8xe6 {[%clk
0:02:43.3]} 35. Ng4 {[%clk 0:00:54.6]} 35... Bd4 {[%clk 0:02:37.5]} 36. Rb4
{[%clk 0:00:49.8]} 36... Bc5 {[%clk 0:02:35.3]} 37. Rbb1 {[%clk 0:00:46]} 37...
Bxa3 {[%clk 0:02:34.6]} 38. Rbd1 {[%clk 0:00:42.4]} 38... b4 {[%clk 0:02:32.1]}
39. Rd8+ {[%clk 0:00:41]} 39... Kg7 {[%clk 0:02:30.9]} 40. Rfd1 {[%clk
0:00:40.2]} 40... Re1+ {[%clk 0:02:26.9]} 41. Rxe1 {[%clk 0:00:38.6]} 41...
Rxe1+ {[%clk 0:02:26.4]} 42. Kh2 {[%clk 0:00:38.3]} 42... b3 {[%clk 0:02:25.8]}
43. Ra8 {[%clk 0:00:32]} 43... Re6 {[%clk 0:02:22.4]} 0-1